[Event "ESTCC 50 2019"]
[Site "Mali Losinj"]
[Date "2019.09.19"]
[Round "2.19"]
[White "Watzka, Horst"]
[Black "Andersen, Per O"]
[Result "1-0"]
[ECO "B43"]
[WhiteElo "2187"]
[BlackElo "1971"]
[Annotator "NA"]
[PlyCount "93"]
[EventDate "2019.09.18"]
[EventType "team-tourn"]
[EventCountry "CRO"]
[SourceTitle "playchess.com"]
[Source "ChessBase"]
[SourceQuality "1"]
[WhiteTeam "Austria"]
[BlackTeam "Norway"]
[WhiteTeamCountry "AUT"]
[BlackTeamCountry "NOR"]
[TimeControl "40/5400+30:1800+30"]

1. e4 {[%emt 0:00:30]} c5 {[%emt 0:00:30]} 2. Nf3 {[%emt 0:00:30]} e6 {[%emt 0:00:30]} 3. Nc3 {[%emt 0:01:30]} a6 {[%emt 0:00:30]} 4. d4 {[%emt 0:01:30]} cxd4 {[%emt 0:00:30]} 5. Nxd4 {[%emt 0:00:30]} Qc7 {[%emt 0:00:30]} 6. Be2 {[%emt 0:03:30]} b5 {[%emt 0:00:30]} 7. O-O {[%emt 0:10:30]} Bb7 {[%emt 0:00:30]} 8. Bf3 {[%emt 0:01:30]} Nc6 {[%emt 0:06:30]} 9. Nxc6 {[%emt 0:04:30]} dxc6 {[%emt 0:02:30]} 10. Be3 {[%emt 0:04:30]} Bd6 {[%emt 0:06:30]} 11. g3 {[%emt 0:06:30]} Rd8 {[%emt 0:05:30]} 12. Qe2 {[%emt 0:00:00]} Nf6 {[%emt 0:01:30]} 13. Rad1 {[%emt 0:08:00]} e5 {[%emt 0:12:30]} 14. a4 {[%emt 0:14:30]} b4 {[%emt 0:01:30]} 15. Nb1 {[%emt 0:01:30]} O-O {[%emt 0:04:30]} 16. Nd2 {[%emt 0:01:30]} c5 {[%emt 0:05:30]} 17. Bg2 {[%emt 0:11:30]} Rfe8 {[%emt 0:03:30]} 18. f3 {[%emt 0:00:30]} a5 {[%emt 0:09:30]} 19. b3 {[%emt 0:00:30]} Bc8 {[%emt 0:06:30]} 20. Rfe1 {[%emt 0:01:30]} Be6 {[%emt 0:01:30]} 21. Nc4 {[%emt 0:00:00]} Bc8 {[%emt 0:03:30]} 22. Qf2 {[%emt 0:02:00]} Be7 {[%emt 0:03:30]} 23. Bf1 {[%emt 0:00:00]} Ba6 {[%emt 0:03:30]} 24. Nb2 {[%emt 0:03:00]} Bxf1 {[%emt 0:00:54]} 25. Qxf1 {[%emt 0:00:30]} Rxd1 {[%emt 0:04:51]} 26. Rxd1 {[%emt 0:00:00]} Rd8 {[%emt 0:00:26]} 27. Rd3 {[%emt 0:01:00]} h5 {[%emt 0:02:07]} 28. Qd1 {[%emt 0:00:30]} Rxd3 {[%emt 0:00:53]} 29. Qxd3 {[%emt 0:00:30]} Qd7 {[%emt 0:06:26]} 30. Nc4 {[%emt 0:01:30]} Qc7 {[%emt 0:00:46]} 31. Kg2 {[%emt 0:01:30]} Kh7 {[%emt 0:01:15]} 32. Bc1 {[%emt 0:10:37]} h4 {[%emt 0:03:21]} 33. Bb2 {[%emt 0:00:37]} Nd7 {[%emt 0:00:18]} 34. Nxa5 {[%emt 0:02:03]} Nb6 {[%emt 0:02:22]} 35. Nc4 {[%emt 0:00:35]} Nxc4 {[%emt 0:00:37]} 36. Qxc4 {[%emt 0:00:11]} Bf6 {[%emt 0:00:54]} 37. Qd5 {[%emt 0:00:39]} hxg3 {[%emt 0:00:12]} 38. hxg3 {[%emt 0:00:10]} Kg8 {[%emt 0:00:19]} 39. Bc1 {[%emt 0:00:37]} Qc8 {[%emt 0:01:10]} 40. Be3 {[%emt 0:00:26]} Qa6 {[%emt 0:00:09]} 41. Qxc5 {[%emt 0:05:05]} Qe2+ {[%emt 0:06:00]} 42. Bf2 {[%emt 0:00:00]} Bg5 {[%emt 0:01:30]} 43. Qc4 {[%emt 0:01:00]} Qd2 {[%emt 0:01:30]} 44. Qd3 {[%emt 0:00:30]} Qc1 {[%emt 0:03:30]} 45. a5 {[%emt 0:00:00]} Qa1 {[%emt 0:00:30]} 46. a6 {[%emt 0:00:00]} Kh7 {[%emt 0:00:30]} 47. a7 {[%emt 0:01:30]} 1-0

[Event "ESTCC 50 2019"]
[Site "Mali Losinj"]
[Date "2019.09.19"]
[Round "2.20"]
[White "Ortoft, Kai"]
[Black "Ernst, Michael"]
[Result "1/2-1/2"]
[ECO "D02"]
[WhiteElo "1957"]
[BlackElo "2199"]
[Annotator "NA"]
[PlyCount "61"]
[EventDate "2019.09.18"]
[EventType "team-tourn"]
[EventCountry "CRO"]
[SourceTitle "playchess.com"]
[Source "ChessBase"]
[SourceQuality "1"]
[WhiteTeam "Norway"]
[BlackTeam "Austria"]
[WhiteTeamCountry "NOR"]
[BlackTeamCountry "AUT"]
[TimeControl "40/5400+30:1800+30"]

1. Nf3 {[%emt 0:00:30]} d5 {[%emt 0:00:30]} 2. d4 {[%emt 0:00:30]} Bf5 {[%emt 0:00:30]} 3. Bf4 {[%emt 0:01:30]} e6 {[%emt 0:00:30]} 4. e3 {[%emt 0:00:00]} Bd6 {[%emt 0:01:30]} 5. Bg3 {[%emt 0:00:00]} Nf6 {[%emt 0:01:30]} 6. Bd3 {[%emt 0:01:30]} Ne4 {[%emt 0:06:30]} 7. Be5 {[%emt 0:09:30]} O-O {[%emt 0:06:30]} 8. O-O {[%emt 0:04:30]} Nd7 {[%emt 0:01:30]} 9. Bxd6 {[%emt 0:00:30]} Nxd6 {[%emt 0:02:30]} 10. Bxf5 {[%emt 0:03:30]} Nxf5 {[%emt 0:01:30]} 11. Nbd2 {[%emt 0:00:30]} Nd6 {[%emt 0:04:30]} 12. Qe2 {[%emt 0:02:30]} c5 {[%emt 0:02:30]} 13. e4 {[%emt 0:08:30]} dxe4 {[%emt 0:01:30]} 14. Nxe4 {[%emt 0:00:30]} Nxe4 {[%emt 0:02:30]} 15. Qxe4 {[%emt 0:00:00]} Qb6 {[%emt 0:02:30]} 16. b3 {[%emt 0:05:00]} cxd4 {[%emt 0:02:30]} 17. Qxd4 {[%emt 0:00:30]} Qxd4 {[%emt 0:00:30]} 18. Nxd4 {[%emt 0:00:30]} Rfd8 {[%emt 0:00:30]} 19. Rfd1 {[%emt 0:00:30]} Nc5 {[%emt 0:07:30]} 20. c4 {[%emt 0:29:30]} Ne4 {[%emt 0:03:30]} 21. Ne2 {[%emt 0:06:30]} Kf8 {[%emt 0:01:30]} 22. f3 {[%emt 0:00:30]} Nc5 {[%emt 0:00:30]} 23. Nc3 {[%emt 0:00:30]} Ke7 {[%emt 0:00:30]} 24. Kf1 {[%emt 0:00:30]} Rd3 {[%emt 0:02:30]} 25. Rxd3 {[%emt 0:00:30]} Nxd3 {[%emt 0:00:30]} 26. Rd1 {[%emt 0:01:30]} Rd8 {[%emt 0:03:30]} 27. g3 {[%emt 0:00:30]} Ne5 {[%emt 0:02:30]} 28. Rxd8 {[%emt 0:00:30]} Kxd8 {[%emt 0:00:30]} 29. Ke2 {[%emt 0:00:30]} Kd7 {[%emt 0:00:30]} 30. Ke3 {[%emt 0:00:30]} Kc6 {[%emt 0:08:30]} 31. h3 {[%emt 0:00:30]} 1/2-1/2

[Event "ESTCC 50 2019"]
[Site "Mali Losinj"]
[Date "2019.09.19"]
[Round "2.21"]
[White "Wallace, Paul"]
[Black "Krebs, Johann"]
[Result "0-1"]
[ECO "B12"]
[WhiteElo "2153"]
[BlackElo "2226"]
[Annotator "ChessBase"]
[PlyCount "202"]
[EventDate "2019.09.18"]
[EventType "team-tourn"]
[EventCountry "CRO"]
[SourceTitle "playchess.com"]
[Source "ChessBase"]
[SourceQuality "1"]
[WhiteTeam "IRL"]
[BlackTeam "AUT"]
[WhiteTeamCountry "AUS"]
[BlackTeamCountry "AUT"]
[TimeControl "40/5400+30:1800+30"]

1. e4 {[%emt 0:00:30]} c6 {[%emt 0:00:30]} 2. d4 {[%emt 0:00:00]} d5 {[%emt 0:00:00]} 3. e5 {[%emt 0:00:00]} Bf5 {[%emt 0:00:00]} 4. Be3 {[%emt 0:00:30]} e6 {[%emt 0:00:30]} 5. Nf3 {[%emt 0:00:30]} Ne7 {[%emt 0:01:30]} 6. Be2 {[%emt 0:00:30]} Nd7 {[%emt 0:02:30]} 7. O-O {[%emt 0:02:30]} c5 {[%emt 0:05:30]} 8. c4 {[%emt 0:11:30]} dxc4 {[%emt 0:09:30]} 9. Bxc4 {[%emt 0:00:30]} a6 {[%emt 0:04:30]} 10. dxc5 {[%emt 0:03:30]} Nc6 {[%emt 0:08:30]} 11. Qe2 {[%emt 0:17:30]} Bxc5 {[%emt 0:12:30]} 12. Bxc5 {[%emt 0:07:30]} Nxc5 {[%emt 0:01:30]} 13. Rd1 {[%emt 0:00:30]} Qc7 {[%emt 0:03:30]} 14. Nc3 {[%emt 0:09:30]} Bg4 {[%emt 0:06:30]} 15. Qe3 {[%emt 0:05:30]} Bxf3 {[%emt 0:02:30]} 16. Qxf3 {[%emt 0:00:30]} O-O {[%emt 0:01:30]} 17. Re1 {[%emt 0:02:30]} b5 {[%emt 0:15:30]} 18. Bd3 {[%emt 0:04:30]} Nxd3 {[%emt 0:04:16]} 19. Qxd3 {[%emt 0:00:30]} Nxe5 {[%emt 0:00:22]} 20. Qg3 {[%emt 0:00:30]} f6 {[%emt 0:00:08]} 21. f4 {[%emt 0:07:30]} Ng6 {[%emt 0:04:54]} 22. Rxe6 {[%emt 0:01:30]} Qxf4 {[%emt 0:00:08]} 23. Rd1 {[%emt 0:11:22]} b4 {[%emt 0:04:18]} 24. Ne4 {[%emt 0:03:34]} Rfe8 {[%emt 0:01:50]} 25. Qb3 {[%emt 0:02:01]} Kh8 {[%emt 0:00:26]} 26. Nd6 {[%emt 0:00:16]} Rxe6 {[%emt 0:01:00]} 27. Qxe6 {[%emt 0:00:05]} Ne5 {[%emt 0:00:18]} 28. Qd5 {[%emt 0:01:13]} Rf8 {[%emt 0:02:03]} 29. Nf7+ {[%emt 0:01:45]} Nxf7 {[%emt 0:00:51]} 30. Qxf7 {[%emt 0:00:06]} Qe3+ {[%emt 0:01:17]} 31. Kh1 {[%emt 0:00:31]} Re8 {[%emt 0:00:14]} 32. h3 {[%emt 0:00:28]} h6 {[%emt 0:00:16]} 33. Qc4 {[%emt 0:02:53]} Qe2 {[%emt 0:00:58]} 34. Qd4 {[%emt 0:02:27]} Kh7 {[%emt 0:02:32]} 35. a3 {[%emt 0:00:32]} Re4 {[%emt 0:01:43]} 36. Qd7 {[%emt 0:00:12]} Qh5 {[%emt 0:01:37]} 37. axb4 {[%emt 0:00:32]} Rxb4 {[%emt 0:01:52]} 38. Qd3+ {[%emt 0:00:14]} f5 {[%emt 0:00:21]} 39. Rf1 {[%emt 0:01:14]} Qg6 {[%emt 0:00:34]} 40. Rf2 {[%emt 0:01:59]} f4 {[%emt 0:00:53]} 41. Qc3 {[%emt 0:01:06]} Qe4 {[%emt 0:04:09]} 42. Re2 {[%emt 0:01:30]} Qc4 {[%emt 0:09:05]} 43. Qxc4 {[%emt 0:01:30]} Rxc4 {[%emt 0:00:02]} 44. Re6 {[%emt 0:00:30]} a5 {[%emt 0:02:56]} 45. b3 {[%emt 0:05:30]} Rc5 {[%emt 0:06:40]} 46. Rb6 {[%emt 0:00:30]} Rg5 {[%emt 0:00:21]} 47. b4 {[%emt 0:01:30]} Rg3 {[%emt 0:00:52]} 48. Kh2 {[%emt 0:01:30]} a4 {[%emt 0:00:07]} 49. Ra6 {[%emt 0:00:30]} a3 {[%emt 0:00:08]} 50. b5 {[%emt 0:00:00]} Rb3 {[%emt 0:00:12]} 51. b6 {[%emt 0:00:00]} Kg6 {[%emt 0:04:11]} 52. b7+ {[%emt 0:00:30]} Kh5 {[%emt 0:01:45]} 53. Rxa3 {[%emt 0:00:30]} Rxb7 {[%emt 0:00:08]} 54. g3 {[%emt 0:01:30]} Rb2+ {[%emt 0:00:54]} 55. Kg1 {[%emt 0:00:30]} g5 {[%emt 0:00:33]} 56. gxf4 {[%emt 0:00:30]} gxf4 {[%emt 0:00:02]} 57. Ra4 {[%emt 0:01:30]} Kg5 {[%emt 0:00:39]} 58. Rc4 {[%emt 0:01:10]} Rd2 {[%emt 0:00:08]} 59. Ra4 {[%emt 0:00:10]} Kf5 {[%emt 0:00:17]} 60. Rb4 {[%emt 0:00:58]} Ke5 {[%emt 0:00:14]} 61. Ra4 {[%emt 0:01:04]} Rd4 {[%emt 0:00:31]} 62. Ra3 {[%emt 0:02:34]} Ke4 {[%emt 0:00:36]} 63. Kf2 {[%emt 0:07:14]} Rd2+ {[%emt 0:00:16]} 64. Ke1 {[%emt 0:00:13]} Rd3 {[%emt 0:00:45]} 65. Ra4+ {[%emt 0:02:18]} Ke3 {[%emt 0:00:43]} 66. Ra6 {[%emt 0:00:14]} h5 {[%emt 0:01:34]} 67. Re6+ {[%emt 0:02:21]} Kf3 {[%emt 0:00:08]} 68. Rg6 {[%emt 0:01:54]} Ra3 {[%emt 0:01:18]} 69. Rf6 {[%emt 0:00:41]} Ra1+ {[%emt 0:00:53]} 70. Kd2 {[%emt 0:00:11]} Kg3 {[%emt 0:00:06]} 71. Ke2 {[%emt 0:00:55]} Ra2+ {[%emt 0:00:56]} 72. Kf1 {[%emt 0:01:15]} Rh2 {[%emt 0:01:10]} 73. Rg6+ {[%emt 0:00:32]} Kf3 {[%emt 0:00:05]} 74. Kg1 {[%emt 0:00:15]} Rxh3 {[%emt 0:00:12]} 75. Ra6 {[%emt 0:00:11]} Rg3+ {[%emt 0:00:18]} 76. Kf1 {[%emt 0:01:09]} Rg5 {[%emt 0:01:58]} 77. Ra3+ {[%emt 0:00:36]} Kg4 {[%emt 0:00:05]} 78. Kf2 {[%emt 0:00:58]} Rb5 {[%emt 0:00:16]} 79. Kg2 {[%emt 0:01:08]} Rb2+ {[%emt 0:00:05]} 80. Kg1 {[%emt 0:00:24]} Re2 {[%emt 0:01:16]} 81. Rb3 {[%emt 0:01:04]} h4 {[%emt 0:00:13]} 82. Ra3 {[%emt 0:00:56]} Re3 {[%emt 0:00:08]} 83. Ra8 {[%emt 0:00:16]} Kg3 {[%emt 0:00:34]} 84. Rg8+ {[%emt 0:00:16]} Kf3 {[%emt 0:00:02]} 85. Rf8 {[%emt 0:00:30]} Rd3 {[%emt 0:00:42]} 86. Rf7 {[%emt 0:00:29]} Rd1+ {[%emt 0:02:59]} 87. Kh2 {[%emt 0:00:06]} Ke3 {[%emt 0:00:16]} 88. Kg2 {[%emt 0:00:19]} h3+ {[%emt 0:00:28]} 89. Kxh3 {[%emt 0:01:08]} f3 {[%emt 0:00:59]} 90. Re7+ {[%emt 0:01:16]} Kf2 {[%emt 0:00:14]} 91. Ra7 {[%emt 0:01:34]} Rd8 {[%emt 0:01:27]} 92. Ra2+ {[%emt 0:00:11]} Ke3 {[%emt 0:00:06]} 93. Ra3+ {[%emt 0:00:49]} Ke2 {[%emt 0:00:40]} 94. Ra7 {[%emt 0:00:27]} f2 {[%emt 0:00:29]} 95. Re7+ {[%emt 0:00:10]} Kf1 {[%emt 0:00:03]} 96. Rg7 {[%emt 0:00:58]} Re8 {[%emt 0:00:55]} 97. Kg3 {[%emt 0:00:17]} Re3+ {[%emt 0:00:24]} 98. Kh2 {[%emt 0:00:11]} Ke1 {[%emt 0:00:31]} 99. Ra7 {[%emt 0:00:15]} f1=R {[%emt 0:01:27]} 100. Ra1+ {[%emt 0:00:47]} Kf2 {[%emt 0:00:13]} 101. Rd1 {[%emt 0:00:48]} Rh3+ {[%emt 0:00:35]} 0-1

[Event "ESTCC 50 2019"]
[Site "Mali Losinj"]
[Date "2019.09.19"]
[Round "2.22"]
[White "Wegerer, Fred"]
[Black "Fox, Anthony"]
[Result "1-0"]
[ECO "E05"]
[WhiteElo "2171"]
[BlackElo "2023"]
[Annotator "ChessBase"]
[PlyCount "139"]
[EventDate "2019.09.18"]
[EventType "team-tourn"]
[EventCountry "CRO"]
[SourceTitle "playchess.com"]
[Source "ChessBase"]
[SourceQuality "1"]
[WhiteTeam "Austria"]
[BlackTeam "Ireland"]
[WhiteTeamCountry "AUT"]
[BlackTeamCountry "IRL"]
[TimeControl "40/5400+30:1800+30"]

1. c4 {[%emt 0:00:30]} e6 {[%emt 0:00:30]} 2. Nf3 {[%emt 0:01:30]} d5 {[%emt 0:00:00]} 3. g3 {[%emt 0:03:30]} Nf6 {[%emt 0:00:00]} 4. Bg2 {[%emt 0:00:30]} Be7 {[%emt 0:00:30]} 5. O-O {[%emt 0:00:30]} O-O {[%emt 0:00:30]} 6. d4 {[%emt 0:08:30]} dxc4 {[%emt 0:01:30]} 7. Ne5 {[%emt 0:04:30]} Nc6 {[%emt 0:00:30]} 8. Nxc6 {[%emt 0:03:30]} bxc6 {[%emt 0:00:30]} 9. Bxc6 {[%emt 0:00:30]} Rb8 {[%emt 0:00:30]} 10. Nc3 {[%emt 0:03:30]} Bb7 {[%emt 0:19:30]} 11. Bxb7 {[%emt 0:09:30]} Rxb7 {[%emt 0:00:30]} 12. e4 {[%emt 0:11:30]} c6 {[%emt 0:19:30]} 13. Qa4 {[%emt 0:08:30]} Qxd4 {[%emt 0:02:30]} 14. Qxc6 {[%emt 0:01:30]} Qb6 {[%emt 0:06:30]} 15. Qxc4 {[%emt 0:00:00]} Rd8 {[%emt 0:05:30]} 16. Qe2 {[%emt 0:25:57]} Qa5 {[%emt 0:04:30]} 17. Bf4 {[%emt 0:04:14]} Bb4 {[%emt 0:09:30]} 18. Rfd1 {[%emt 0:00:17]} Rbd7 {[%emt 0:07:33]} 19. Rxd7 {[%emt 0:00:18]} Rxd7 {[%emt 0:00:06]} 20. Qc4 {[%emt 0:01:15]} Bxc3 {[%emt 0:03:40]} 21. bxc3 {[%emt 0:00:05]} h6 {[%emt 0:02:30]} 22. Rb1 {[%emt 0:00:38]} Qh5 {[%emt 0:01:51]} 23. Kg2 {[%emt 0:03:09]} Kh7 {[%emt 0:04:19]} 24. h3 {[%emt 0:01:00]} Qg6 {[%emt 0:02:49]} 25. Re1 {[%emt 0:01:52]} Nh5 {[%emt 0:00:46]} 26. Be3 {[%emt 0:02:11]} e5 {[%emt 0:00:21]} 27. Kh2 {[%emt 0:01:56]} Nf6 {[%emt 0:01:13]} 28. f3 {[%emt 0:00:15]} Nh5 {[%emt 0:01:13]} 29. g4 {[%emt 0:00:56]} Nf4 {[%emt 0:00:20]} 30. Bxf4 {[%emt 0:00:10]} exf4 {[%emt 0:00:06]} 31. Re2 {[%emt 0:00:37]} Qb6 {[%emt 0:02:09]} 32. e5 {[%emt 0:00:36]} Rd1 {[%emt 0:01:22]} 33. Qe4+ {[%emt 0:00:40]} g6 {[%emt 0:00:35]} 34. Rg2 {[%emt 0:01:23]} Qe3 {[%emt 0:01:01]} 35. Qxe3 {[%emt 0:00:45]} fxe3 {[%emt 0:00:08]} 36. Kg3 {[%emt 0:00:03]} Rd2 {[%emt 0:00:41]} 37. Rg1 {[%emt 0:00:05]} Rxa2 {[%emt 0:00:47]} 38. Re1 {[%emt 0:00:05]} e2 {[%emt 0:00:36]} 39. Kf2 {[%emt 0:00:49]} Rc2 {[%emt 0:00:11]} 40. Rxe2 {[%emt 0:00:11]} Rxc3 {[%emt 0:00:23]} 41. Ra2 {[%emt 0:30:24]} Rc7 {[%emt 0:30:41]} 42. h4 {[%emt 0:00:00]} Re7 {[%emt 0:00:00]} 43. f4 {[%emt 0:00:00]} g5 {[%emt 0:00:00]} 44. Kg3 {[%emt 0:00:00]} Kg7 {[%emt 0:00:00]} 45. Ra6 {[%emt 0:00:00]} gxf4+ {[%emt 0:00:00]} 46. Kxf4 {[%emt 0:00:00]} Rb7 {[%emt 0:00:00]} 47. Kf5 {[%emt 0:00:00]} Rc7 {[%emt 0:00:00]} 48. g5 {[%emt 0:00:00]} hxg5 {[%emt 0:00:00]} 49. hxg5 {[%emt 0:00:00]} Rb7 {[%emt 0:00:00]} 50. g6 {[%emt 0:00:00]} fxg6+ {[%emt 0:00:00]} 51. Rxg6+ {[%emt 0:00:00]} Kf8 {[%emt 0:00:00]} 52. Rh6 {[%emt 0:00:00]} Rb1 {[%emt 0:00:00]} 53. Rh7 {[%emt 0:01:28]} a5 {[%emt 0:00:00]} 54. Ra7 {[%emt 0:00:54]} Ra1 {[%emt 0:03:31]} 55. Kf6 {[%emt 0:00:22]} Rf1+ {[%emt 0:03:55]} 56. Ke6 {[%emt 0:00:06]} Ra1 {[%emt 0:00:12]} 57. Ra8+ {[%emt 0:00:11]} Kg7 {[%emt 0:00:07]} 58. Ke7 {[%emt 0:00:52]} a4 {[%emt 0:00:16]} 59. e6 {[%emt 0:02:27]} a3 {[%emt 0:00:07]} 60. Ke8 {[%emt 0:03:06]} a2 {[%emt 0:00:20]} 61. e7 {[%emt 0:00:09]} Kh7 {[%emt 0:01:50]} 62. Ra3 {[%emt 0:00:22]} Kg7 {[%emt 0:00:42]} 63. Rg3+ {[%emt 0:00:58]} Kf6 {[%emt 0:02:04]} 64. Rg2 {[%emt 0:00:18]} Ke6 {[%emt 0:00:34]} 65. Re2+ {[%emt 0:00:13]} Kd6 {[%emt 0:00:20]} 66. Kd8 {[%emt 0:00:15]} Kc5 {[%emt 0:00:35]} 67. Kc7 {[%emt 0:01:32]} Kb4 {[%emt 0:00:34]} 68. Kb6 {[%emt 0:00:56]} Ka3 {[%emt 0:00:06]} 69. e8=Q {[%emt 0:00:47]} Rb1+ {[%emt 0:00:22]} 70. Ka5 {[%emt 0:00:06]} 1-0

[Event "ESTCC 50 2019"]
[Site "Mali Losinj"]
[Date "2019.09.19"]
[Round "2.23"]
[White "Cafolla, Peter"]
[Black "Kainz, Josef"]
[Result "1/2-1/2"]
[ECO "B25"]
[WhiteElo "1919"]
[BlackElo "1922"]
[Annotator "NA"]
[PlyCount "89"]
[EventDate "2019.09.18"]
[EventType "team-tourn"]
[EventCountry "CRO"]
[SourceTitle "playchess.com"]
[Source "ChessBase"]
[SourceQuality "1"]
[WhiteTeam "Ireland"]
[BlackTeam "Austria"]
[WhiteTeamCountry "IRL"]
[BlackTeamCountry "AUT"]
[TimeControl "40/5400+30:1800+30"]

1. e4 {[%emt 0:00:30]} c5 {[%emt 0:00:30]} 2. Nc3 {[%emt 0:00:00]} Nc6 {[%emt 0:00:00]} 3. g3 {[%emt 0:00:00]} g6 {[%emt 0:00:00]} 4. Bg2 {[%emt 0:00:00]} Bg7 {[%emt 0:00:30]} 5. d3 {[%emt 0:00:00]} d6 {[%emt 0:00:00]} 6. f4 {[%emt 0:00:30]} e6 {[%emt 0:00:00]} 7. Nf3 {[%emt 0:00:00]} Nge7 {[%emt 0:00:30]} 8. O-O {[%emt 0:00:00]} O-O {[%emt 0:00:00]} 9. Be3 {[%emt 0:00:30]} b5 {[%emt 0:00:00]} 10. Qd2 {[%emt 0:09:30]} b4 {[%emt 0:02:30]} 11. Nd1 {[%emt 0:00:00]} Rb8 {[%emt 0:02:30]} 12. c3 {[%emt 0:10:00]} e5 {[%emt 0:25:30]} 13. fxe5 {[%emt 0:05:30]} Nxe5 {[%emt 0:00:30]} 14. Nxe5 {[%emt 0:00:30]} Bxe5 {[%emt 0:02:30]} 15. d4 {[%emt 0:01:30]} cxd4 {[%emt 0:05:30]} 16. cxd4 {[%emt 0:00:30]} Bg7 {[%emt 0:00:30]} 17. Rc1 {[%emt 0:06:30]} a5 {[%emt 0:07:30]} 18. Nf2 {[%emt 0:03:30]} Ba6 {[%emt 0:01:30]} 19. Rfd1 {[%emt 0:03:30]} Qb6 {[%emt 0:10:30]} 20. Bh6 {[%emt 0:01:30]} Rfc8 {[%emt 0:05:30]} 21. Rxc8+ {[%emt 0:07:30]} Rxc8 {[%emt 0:03:30]} 22. Ng4 {[%emt 0:03:30]} Bh8 {[%emt 0:07:30]} 23. Be3 {[%emt 0:04:30]} Qc7 {[%emt 0:09:31]} 24. Nh6+ {[%emt 0:02:30]} Kf8 {[%emt 0:01:01]} 25. Bh3 {[%emt 0:06:30]} Re8 {[%emt 0:02:49]} 26. Rc1 {[%emt 0:02:30]} Qb7 {[%emt 0:02:53]} 27. Qf2 {[%emt 0:01:30]} Ng8 {[%emt 0:00:35]} 28. Bf1 {[%emt 0:12:22]} Bxf1 {[%emt 0:03:53]} 29. Qxf1 {[%emt 0:04:53]} Nxh6 {[%emt 0:01:35]} 30. Bxh6+ {[%emt 0:00:06]} Kg8 {[%emt 0:00:02]} 31. Qd3 {[%emt 0:04:07]} Bg7 {[%emt 0:01:20]} 32. Bxg7 {[%emt 0:02:01]} Kxg7 {[%emt 0:00:01]} 33. d5 {[%emt 0:01:56]} Rc8 {[%emt 0:02:53]} 34. Qd4+ {[%emt 0:00:50]} f6 {[%emt 0:00:12]} 35. Rc4 {[%emt 0:02:41]} Rxc4 {[%emt 0:00:08]} 36. Qxc4 {[%emt 0:00:07]} Qb6+ {[%emt 0:00:02]} 37. Kg2 {[%emt 0:00:10]} Qc5 {[%emt 0:00:07]} 38. Qd3 {[%emt 0:04:30]} a4 {[%emt 0:01:42]} 39. Kf3 {[%emt 0:00:34]} Qc1 {[%emt 0:02:15]} 40. Qb5 {[%emt 0:02:00]} Qxb2 {[%emt 0:00:00]} 41. Qd7+ {[%emt 0:02:43]} Kg8 {[%emt 0:08:31]} 42. Qe8+ {[%emt 0:01:30]} Kg7 {[%emt 0:00:30]} 43. Qd7+ {[%emt 0:00:30]} Kh6 {[%emt 0:00:30]} 44. Qh3+ {[%emt 0:00:30]} Kg7 {[%emt 0:00:00]} 45. Qd7+ {[%emt 0:00:30]} 1/2-1/2

[Event "ESTCC 50 2019"]
[Site "Mali Losinj"]
[Date "2019.09.19"]
[Round "2.24"]
[White "Detter, Peter"]
[Black "Lyons, Brendan"]
[Result "0-1"]
[ECO "D06"]
[WhiteElo "1982"]
[BlackElo "1971"]
[Annotator "NA"]
[PlyCount "106"]
[EventDate "2019.09.18"]
[EventType "team-tourn"]
[EventCountry "CRO"]
[SourceTitle "playchess.com"]
[Source "ChessBase"]
[SourceQuality "1"]
[WhiteTeam "Austria"]
[BlackTeam "Ireland"]
[WhiteTeamCountry "AUT"]
[BlackTeamCountry "IRL"]
[TimeControl "40/5400+30:1800+30"]

1. d4 {[%emt 0:00:30]} d5 {[%emt 0:02:30]} 2. c4 {[%emt 0:00:00]} Bf5 {[%emt 0:00:30]} 3. cxd5 {[%emt 0:00:00]} Bxb1 {[%emt 0:00:00]} 4. Qa4+ {[%emt 0:01:30]} Qd7 {[%emt 0:02:00]} 5. Qxd7+ {[%emt 0:00:30]} Nxd7 {[%emt 0:00:00]} 6. Rxb1 {[%emt 0:00:00]} Ngf6 {[%emt 0:00:00]} 7. Nf3 {[%emt 0:01:00]} Nb6 {[%emt 0:05:30]} 8. e4 {[%emt 0:12:30]} Nxe4 {[%emt 0:01:30]} 9. Bb5+ {[%emt 0:00:30]} Kd8 {[%emt 0:09:30]} 10. Bd3 {[%emt 0:12:30]} Nd6 {[%emt 0:03:30]} 11. Bf4 {[%emt 0:02:30]} Nxd5 {[%emt 0:01:30]} 12. Bxd6 {[%emt 0:00:30]} exd6 {[%emt 0:13:30]} 13. Ng5 {[%emt 0:04:30]} Ke8 {[%emt 0:03:30]} 14. O-O {[%emt 0:10:30]} h6 {[%emt 0:11:30]} 15. Ne4 {[%emt 0:08:30]} Nf4 {[%emt 0:04:30]} 16. Rfe1 {[%emt 0:08:30]} Kd7 {[%emt 0:01:30]} 17. Bc2 {[%emt 0:03:30]} d5 {[%emt 0:05:30]} 18. Ng3 {[%emt 0:07:30]} g6 {[%emt 0:02:30]} 19. Re3 {[%emt 0:02:30]} Bd6 {[%emt 0:04:30]} 20. Ne2 {[%emt 0:11:04]} Nxe2+ {[%emt 0:04:30]} 21. Rxe2 {[%emt 0:01:04]} Rhe8 {[%emt 0:01:30]} 22. Rbe1 {[%emt 0:00:39]} Bf4 {[%emt 0:00:30]} 23. Kf1 {[%emt 0:01:35]} Bg5 {[%emt 0:04:46]} 24. Rxe8 {[%emt 0:01:18]} Rxe8 {[%emt 0:00:08]} 25. Rxe8 {[%emt 0:01:03]} Kxe8 {[%emt 0:00:08]} 26. Ke2 {[%emt 0:00:03]} a5 {[%emt 0:05:23]} 27. Kd3 {[%emt 0:00:38]} Kd7 {[%emt 0:00:37]} 28. b3 {[%emt 0:00:42]} Kd6 {[%emt 0:00:54]} 29. g3 {[%emt 0:00:49]} b6 {[%emt 0:00:26]} 30. f4 {[%emt 0:00:28]} Bf6 {[%emt 0:00:29]} 31. Bd1 {[%emt 0:00:04]} c5 {[%emt 0:02:26]} 32. dxc5+ {[%emt 0:00:22]} bxc5 {[%emt 0:00:26]} 33. Bf3 {[%emt 0:00:37]} Bd4 {[%emt 0:03:43]} 34. h3 {[%emt 0:03:16]} Bf2 {[%emt 0:05:14]} 35. g4 {[%emt 0:00:07]} Bg3 {[%emt 0:00:27]} 36. Ke3 {[%emt 0:00:43]} g5 {[%emt 0:00:32]} 37. fxg5 {[%emt 0:03:10]} hxg5 {[%emt 0:00:09]} 38. Kd3 {[%emt 0:00:31]} Ke5 {[%emt 0:00:12]} 39. Ke3 {[%emt 0:00:33]} Bf4+ {[%emt 0:00:36]} 40. Kd3 {[%emt 0:00:05]} Bc1 {[%emt 0:00:15]} 41. Bg2 {[%emt 0:01:09]} f6 {[%emt 0:05:39]} 42. a4 {[%emt 0:01:30]} d4 {[%emt 0:01:30]} 43. Be4 {[%emt 0:03:30]} Kf4 {[%emt 0:00:30]} 44. Bf5 {[%emt 0:00:30]} Kg3 {[%emt 0:00:30]} 45. Be6 {[%emt 0:00:00]} Kxh3 {[%emt 0:02:30]} 46. Bf5 {[%emt 0:00:00]} Kg3 {[%emt 0:00:30]} 47. Be6 {[%emt 0:02:30]} Kf2 {[%emt 0:01:30]} 48. Bd5 {[%emt 0:00:30]} f5 {[%emt 0:04:30]} 49. gxf5 {[%emt 0:00:30]} g4 {[%emt 0:00:30]} 50. Kc4 {[%emt 0:00:30]} g3 {[%emt 0:00:00]} 51. Kxc5 {[%emt 0:00:00]} d3 {[%emt 0:00:00]} 52. Be4 {[%emt 0:01:00]} d2 {[%emt 0:00:30]} 53. Bc2 {[%emt 0:00:00]} g2 {[%emt 0:00:00]} 0-1